[Event "Late-Titled-Tuesday-Blitz-September-05-2023"]
[Site "Chess.com"]
[Date "2023.09.05"]
[Round "10"]
[White "CraiggoryC"]
[Black "egnfanclub"]
[Result "0-1"]
[WhiteElo "2216"]
[BlackElo "2295"]
[TimeControl "180+1"]
[EndTime "15:55:20 PDT"]
[Termination "egnfanclub won on time"]

1. e4 {[%clk 0:03:00.9]} 1... e5 {[%clk 0:02:59.3]} 2. Nf3 {[%clk 0:03:00.4]}
2... Nc6 {[%clk 0:02:58.8]} 3. Bb5 {[%clk 0:03:00.9]} 3... a6 {[%clk 0:02:58.7]}
4. Ba4 {[%clk 0:03:01.2]} 4... d6 {[%clk 0:02:59.6]} 5. c3 {[%clk 0:02:59.4]}
5... f5 {[%clk 0:02:59.4]} 6. exf5 {[%clk 0:02:46.1]} 6... Bxf5 {[%clk
0:03:00.3]} 7. O-O {[%clk 0:02:46.4]} 7... Bd3 {[%clk 0:03:00.1]} 8. Re1 {[%clk
0:02:47]} 8... e4 {[%clk 0:03:00.6]} 9. Bc2 {[%clk 0:02:41.4]} 9... Bxc2 {[%clk
0:02:46.6]} 10. Qxc2 {[%clk 0:02:42.3]} 10... Nf6 {[%clk 0:02:44.6]} 11. d3
{[%clk 0:02:40.9]} 11... d5 {[%clk 0:02:41.8]} 12. Bg5 {[%clk 0:02:37.5]} 12...
Be7 {[%clk 0:02:39]} 13. Bxf6 {[%clk 0:02:33.8]} 13... Bxf6 {[%clk 0:02:39.1]}
14. dxe4 {[%clk 0:02:33.6]} 14... O-O {[%clk 0:02:39.7]} 15. exd5 {[%clk
0:02:28.5]} 15... Qxd5 {[%clk 0:02:38.1]} 16. Qb3 {[%clk 0:02:21.6]} 16... Qxb3
{[%clk 0:02:37.9]} 17. axb3 {[%clk 0:02:21.6]} 17... Rad8 {[%clk 0:02:25.8]} 18.
Na3 {[%clk 0:02:17.3]} 18... Na5 {[%clk 0:02:21.4]} 19. b4 {[%clk 0:02:08.1]}
19... Nb3 {[%clk 0:02:21.5]} 20. Rad1 {[%clk 0:02:07.8]} 20... b5 {[%clk
0:02:13.1]} 21. Nc2 {[%clk 0:01:55]} 21... c5 {[%clk 0:02:10.3]} 22. bxc5 {[%clk
0:01:49.6]} 22... Nxc5 {[%clk 0:02:10.3]} 23. Ncd4 {[%clk 0:01:47.5]} 23... Na4
{[%clk 0:02:05.1]} 24. Rd2 {[%clk 0:01:40.5]} 24... Rfe8 {[%clk 0:01:51.1]} 25.
Kf1 {[%clk 0:01:24.1]} 25... Nc5 {[%clk 0:01:38.7]} 26. Rxe8+ {[%clk 0:01:12.9]}
26... Rxe8 {[%clk 0:01:39.6]} 27. g3 {[%clk 0:01:04.2]} 27... Ne4 {[%clk
0:01:22.2]} 28. Re2 {[%clk 0:01:04]} 28... Kf7 {[%clk 0:01:02.6]} 29. Kg2 {[%clk
0:00:56.3]} 29... Nc5 {[%clk 0:00:52.9]} 30. Rxe8 {[%clk 0:00:54.6]} 30... Kxe8
{[%clk 0:00:53.8]} 31. Ne1 {[%clk 0:00:20.5]} 31... Bxd4 {[%clk 0:00:53.1]} 32.
cxd4 {[%clk 0:00:20.3]} 32... Ne6 {[%clk 0:00:47.2]} 33. Nc2 {[%clk 0:00:20]}
33... Kd7 {[%clk 0:00:46]} 34. Kf3 {[%clk 0:00:20.4]} 34... Kd6 {[%clk
0:00:46.5]} 35. Ke4 {[%clk 0:00:20.8]} 35... a5 {[%clk 0:00:46.1]} 36. h4 {[%clk
0:00:20.5]} 36... b4 {[%clk 0:00:41.2]} 37. Ne3 {[%clk 0:00:20.3]} 37... a4
{[%clk 0:00:35.4]} 38. Nc4+ {[%clk 0:00:19.3]} 38... Ke7 {[%clk 0:00:31.2]} 39.
Ke5 {[%clk 0:00:19.1]} 39... Nd8 {[%clk 0:00:22.7]} 40. d5 {[%clk 0:00:18.2]}
40... Nf7+ {[%clk 0:00:23.1]} 41. Kd4 {[%clk 0:00:18]} 41... Nd6 {[%clk
0:00:23.3]} 42. Nxd6 {[%clk 0:00:11.1]} 42... Kxd6 {[%clk 0:00:24.2]} 43. Kc4
{[%clk 0:00:11.3]} 43... a3 {[%clk 0:00:24.8]} 44. bxa3 {[%clk 0:00:09.1]} 44...
bxa3 {[%clk 0:00:25.7]} 45. Kb3 {[%clk 0:00:09.6]} 45... Kxd5 {[%clk 0:00:26.6]}
46. Kxa3 {[%clk 0:00:10.3]} 46... Ke4 {[%clk 0:00:27.5]} 47. Kb4 {[%clk
0:00:09.5]} 47... Kf3 {[%clk 0:00:28]} 48. Kc5 {[%clk 0:00:08.4]} 48... Kxf2
{[%clk 0:00:27.7]} 49. Kd6 {[%clk 0:00:05.3]} 49... Kxg3 {[%clk 0:00:28.3]} 50.
h5 {[%clk 0:00:04.6]} 50... Kh4 {[%clk 0:00:26.5]} 51. h6 {[%clk 0:00:04.9]}
51... g6 {[%clk 0:00:25.8]} 52. Ke5 {[%clk 0:00:05.6]} 52... Kh5 {[%clk
0:00:26.6]} 53. Kf6 {[%clk 0:00:01.7]} 53... Kxh6 {[%clk 0:00:27.5]} 0-1

[Event "Late-Titled-Tuesday-Blitz-September-05-2023"]
[Site "Chess.com"]
[Date "2023.09.05"]
[Round "10"]
[White "jk13"]
[Black "K_A_S_T_O_R"]
[Result "0-1"]
[WhiteElo "2700"]
[BlackElo "2959"]
[TimeControl "180+1"]
[EndTime "15:55:23 PDT"]
[Termination "K_A_S_T_O_R won by checkmate"]

1. e4 {[%clk 0:03:00.9]} 1... c5 {[%clk 0:02:59.7]} 2. c3 {[%clk 0:03:01.5]}
2... Nf6 {[%clk 0:02:59.3]} 3. e5 {[%clk 0:03:02]} 3... Nd5 {[%clk 0:02:59.6]}
4. Bc4 {[%clk 0:03:02.9]} 4... Nb6 {[%clk 0:02:58]} 5. Bb3 {[%clk 0:03:03.6]}
5... Nc6 {[%clk 0:02:57.3]} 6. Nf3 {[%clk 0:03:03.8]} 6... d5 {[%clk 0:02:57.1]}
7. exd6 {[%clk 0:03:04.7]} 7... Qxd6 {[%clk 0:02:56.2]} 8. d4 {[%clk 0:03:02.4]}
8... cxd4 {[%clk 0:02:55.7]} 9. Nxd4 {[%clk 0:03:02.4]} 9... Nxd4 {[%clk
0:02:55.5]} 10. cxd4 {[%clk 0:03:02.9]} 10... Be6 {[%clk 0:02:52.5]} 11. O-O
{[%clk 0:03:01.8]} 11... Bxb3 {[%clk 0:02:52.5]} 12. Qxb3 {[%clk 0:03:02.7]}
12... Qd5 {[%clk 0:02:52.8]} 13. Qg3 {[%clk 0:02:53.5]} 13... e6 {[%clk
0:02:45.1]} 14. Nc3 {[%clk 0:02:51.9]} 14... Qd7 {[%clk 0:02:42.6]} 15. Re1
{[%clk 0:02:43.5]} 15... f6 {[%clk 0:02:29.1]} 16. Qg4 {[%clk 0:02:22.8]} 16...
Kf7 {[%clk 0:02:28.2]} 17. Be3 {[%clk 0:02:19.8]} 17... h5 {[%clk 0:02:23.1]}
18. Qf3 {[%clk 0:02:18.5]} 18... Nd5 {[%clk 0:02:20.8]} 19. Rad1 {[%clk
0:02:06.2]} 19... Bb4 {[%clk 0:02:17.5]} 20. Bd2 {[%clk 0:02:00.3]} 20... Bxc3
{[%clk 0:02:17.5]} 21. bxc3 {[%clk 0:02:00.5]} 21... Rac8 {[%clk 0:02:16.7]} 22.
h4 {[%clk 0:01:48.6]} 22... b5 {[%clk 0:02:11.4]} 23. Re4 {[%clk 0:01:45.2]}
23... g6 {[%clk 0:02:05.3]} 24. Rde1 {[%clk 0:01:42.9]} 24... Rc6 {[%clk
0:02:05.8]} 25. Qe2 {[%clk 0:01:38.5]} 25... Rb6 {[%clk 0:01:53.9]} 26. a4
{[%clk 0:01:32.9]} 26... a6 {[%clk 0:01:53.3]} 27. axb5 {[%clk 0:01:31.8]} 27...
axb5 {[%clk 0:01:53.9]} 28. Ra1 {[%clk 0:01:28.8]} 28... Rhb8 {[%clk 0:01:41.1]}
29. Qf3 {[%clk 0:01:13.7]} 29... Ne7 {[%clk 0:01:35.6]} 30. Ree1 {[%clk
0:01:02.5]} 30... Nf5 {[%clk 0:01:35]} 31. g3 {[%clk 0:01:02.2]} 31... R8b7
{[%clk 0:01:35]} 32. Ra8 {[%clk 0:01:01.5]} 32... Rb8 {[%clk 0:01:28.6]} 33.
Raa1 {[%clk 0:00:57.4]} 33... R6b7 {[%clk 0:01:26.5]} 34. Qe4 {[%clk 0:00:53.7]}
34... Re8 {[%clk 0:01:25.7]} 35. Ra6 {[%clk 0:00:51.6]} 35... Ra7 {[%clk
0:01:17.4]} 36. Rb6 {[%clk 0:00:47.2]} 36... Rc7 {[%clk 0:01:14.3]} 37. Rb1
{[%clk 0:00:45.1]} 37... Nd6 {[%clk 0:00:53.9]} 38. Qf4 {[%clk 0:00:44.3]} 38...
Rc6 {[%clk 0:00:53.6]} 39. Rxc6 {[%clk 0:00:40.7]} 39... Qxc6 {[%clk 0:00:53.8]}
40. Qh6 {[%clk 0:00:39.7]} 40... Rg8 {[%clk 0:00:53.5]} 41. Ra1 {[%clk
0:00:37.4]} 41... Qb7 {[%clk 0:00:53.4]} 42. d5 {[%clk 0:00:35.1]} 42... e5
{[%clk 0:00:51.4]} 43. Be3 {[%clk 0:00:35.2]} 43... Qxd5 {[%clk 0:00:48.9]} 44.
Ra7+ {[%clk 0:00:34.1]} 44... Nb7 {[%clk 0:00:49.2]} 45. Qh7+ {[%clk 0:00:33.4]}
45... Rg7 {[%clk 0:00:49.6]} 46. Qh8 {[%clk 0:00:34]} 46... Rg8 {[%clk
0:00:49.4]} 47. Qh7+ {[%clk 0:00:31]} 47... Rg7 {[%clk 0:00:49.9]} 48. Qh6
{[%clk 0:00:31.2]} 48... Qc6 {[%clk 0:00:46.1]} 49. Qh8 {[%clk 0:00:29.2]} 49...
Rg8 {[%clk 0:00:46]} 50. Qh7+ {[%clk 0:00:28.9]} 50... Rg7 {[%clk 0:00:46.6]}
51. Qh6 {[%clk 0:00:29.4]} 51... Rg8 {[%clk 0:00:47.1]} 52. Kh2 {[%clk
0:00:27.8]} 52... Rg7 {[%clk 0:00:46]} 53. Qh8 {[%clk 0:00:23.3]} 53... Rg8
{[%clk 0:00:46.1]} 54. Qh7+ {[%clk 0:00:23.4]} 54... Rg7 {[%clk 0:00:46.2]} 55.
Qh6 {[%clk 0:00:23.9]} 55... Rg8 {[%clk 0:00:45.2]} 56. Kg1 {[%clk 0:00:22.7]}
56... Rg7 {[%clk 0:00:45.2]} 57. Ra8 {[%clk 0:00:20.4]} 57... Nd6 {[%clk
0:00:40.7]} 58. Qh8 {[%clk 0:00:19.6]} 58... Ne8 {[%clk 0:00:40.9]} 59. Ra7+
{[%clk 0:00:14.9]} 59... Nc7 {[%clk 0:00:37.4]} 60. Qd8 {[%clk 0:00:13.3]} 60...
Ke6 {[%clk 0:00:37.3]} 61. Qc8+ {[%clk 0:00:12.7]} 61... Rd7 {[%clk 0:00:35.7]}
62. Qf8 {[%clk 0:00:09.8]} 62... Rd1+ {[%clk 0:00:34.7]} 63. Kh2 {[%clk
0:00:10.1]} 63... Rh1# {[%clk 0:00:34.6]} 0-1

[Event "Late-Titled-Tuesday-Blitz-September-05-2023"]
[Site "Chess.com"]
[Date "2023.09.05"]
[Round "10"]
[White "KaydenTroffChess"]
[Black "MITerryble"]
[Result "0-1"]
[WhiteElo "2805"]
[BlackElo "2929"]
[TimeControl "180+1"]
[EndTime "15:55:24 PDT"]
[Termination "MITerryble won by resignation"]

1. d4 {[%clk 0:03:00.9]} 1... e6 {[%clk 0:03:00]} 2. Nf3 {[%clk 0:03:01.2]} 2...
Nf6 {[%clk 0:03:00.2]} 3. Bf4 {[%clk 0:03:01.2]} 3... b6 {[%clk 0:02:59.9]} 4.
e3 {[%clk 0:03:01.2]} 4... Bb7 {[%clk 0:03:00.5]} 5. Nbd2 {[%clk 0:03:01.6]}
5... Bd6 {[%clk 0:03:01.2]} 6. Bg3 {[%clk 0:02:59.4]} 6... Bxg3 {[%clk
0:02:57.2]} 7. hxg3 {[%clk 0:02:59]} 7... d6 {[%clk 0:02:57.5]} 8. Bd3 {[%clk
0:02:58.9]} 8... Qe7 {[%clk 0:02:56.9]} 9. c3 {[%clk 0:02:54.3]} 9... e5 {[%clk
0:02:55.3]} 10. Bf5 {[%clk 0:02:44.5]} 10... g6 {[%clk 0:02:46.6]} 11. Bh3
{[%clk 0:02:40.1]} 11... Nbd7 {[%clk 0:02:32.5]} 12. Qa4 {[%clk 0:02:36.1]}
12... e4 {[%clk 0:02:28]} 13. Ng1 {[%clk 0:02:19]} 13... a6 {[%clk 0:02:16.2]}
14. c4 {[%clk 0:02:13.7]} 14... O-O {[%clk 0:02:09.3]} 15. Ne2 {[%clk
0:02:12.1]} 15... Rfe8 {[%clk 0:02:01.8]} 16. Rd1 {[%clk 0:01:52.3]} 16... Nf8
{[%clk 0:02:00.5]} 17. Nc3 {[%clk 0:01:30.7]} 17... h5 {[%clk 0:01:52.8]} 18.
Qc2 {[%clk 0:01:21.2]} 18... N8h7 {[%clk 0:01:51.6]} 19. O-O {[%clk 0:01:01.7]}
19... Ng5 {[%clk 0:01:51.5]} 20. Rfe1 {[%clk 0:00:59]} 20... Nxh3+ {[%clk
0:01:44]} 21. gxh3 {[%clk 0:00:58.8]} 21... Qe6 {[%clk 0:01:44.4]} 22. Kg2
{[%clk 0:00:57.7]} 22... Qf5 {[%clk 0:01:40.4]} 23. Rh1 {[%clk 0:00:48.8]} 23...
b5 {[%clk 0:01:25.7]} 24. Ne2 {[%clk 0:00:46.3]} 24... b4 {[%clk 0:01:17.6]} 25.
h4 {[%clk 0:00:36.9]} 25... a5 {[%clk 0:01:07.4]} 26. Nf4 {[%clk 0:00:36.4]}
26... Bc6 {[%clk 0:00:49.2]} 27. d5 {[%clk 0:00:32.4]} 27... Bd7 {[%clk
0:00:47.9]} 28. Nb3 {[%clk 0:00:31.8]} 28... Ng4 {[%clk 0:00:42.9]} 29. Nd4
{[%clk 0:00:30.4]} 29... Qf6 {[%clk 0:00:43.4]} 30. Rc1 {[%clk 0:00:20.6]} 30...
Bf5 {[%clk 0:00:23.3]} 31. c5 {[%clk 0:00:18.5]} 31... Ne5 {[%clk 0:00:23.6]}
32. cxd6 {[%clk 0:00:16.7]} 32... cxd6 {[%clk 0:00:24.5]} 33. Nxf5 {[%clk
0:00:12.9]} 33... Qxf5 {[%clk 0:00:25.4]} 34. Qc7 {[%clk 0:00:12.2]} 34... Nd3
{[%clk 0:00:22.3]} 35. Rc6 {[%clk 0:00:07.3]} 35... Nxf4+ {[%clk 0:00:17.9]} 36.
exf4 {[%clk 0:00:08.2]} 36... e3 {[%clk 0:00:17.4]} 37. f3 {[%clk 0:00:04.4]}
37... Qxd5 {[%clk 0:00:13.1]} 38. Qxd6 {[%clk 0:00:03.8]} 38... Qxa2 {[%clk
0:00:13.1]} 39. Qd3 {[%clk 0:00:04]} 39... Qxb2+ {[%clk 0:00:12.1]} 40. Rc2
{[%clk 0:00:03.3]} 40... Rad8 {[%clk 0:00:09.4]} 41. Qe2 {[%clk 0:00:02.6]}
41... Qxc2 {[%clk 0:00:08.3]} 42. Qxc2 {[%clk 0:00:02.6]} 42... Rd2+ {[%clk
0:00:08.6]} 43. Qxd2 {[%clk 0:00:03.4]} 43... exd2 {[%clk 0:00:09.5]} 44. Rd1
{[%clk 0:00:03.8]} 44... Rd8 {[%clk 0:00:09.4]} 45. Kf2 {[%clk 0:00:04.4]} 45...
b3 {[%clk 0:00:09.8]} 46. Ke3 {[%clk 0:00:05.3]} 46... b2 {[%clk 0:00:10.1]} 47.
Ke2 {[%clk 0:00:05.9]} 47... a4 {[%clk 0:00:09.7]} 48. f5 {[%clk 0:00:06.8]}
48... a3 {[%clk 0:00:09.3]} 49. g4 {[%clk 0:00:07.7]} 49... a2 {[%clk
0:00:09.4]} 50. fxg6 {[%clk 0:00:08.6]} 50... fxg6 {[%clk 0:00:09.6]} 51. gxh5
{[%clk 0:00:08.8]} 51... b1=Q {[%clk 0:00:09.9]} 0-1

[Event "Late-Titled-Tuesday-Blitz-September-05-2023"]
[Site "Chess.com"]
[Date "2023.09.05"]
[Round "10"]
[White "grzechu96"]
[Black "Murad_Ibrahimli"]
[Result "0-1"]
[WhiteElo "2672"]
[BlackElo "2905"]
[TimeControl "180+1"]
[EndTime "15:55:24 PDT"]
[Termination "Murad_Ibrahimli won by resignation"]

1. e4 {[%clk 0:03:00.9]} 1... e5 {[%clk 0:02:58.2]} 2. Nf3 {[%clk 0:03:01.1]}
2... Nc6 {[%clk 0:02:58.8]} 3. Bc4 {[%clk 0:03:01.3]} 3... Bc5 {[%clk
0:02:58.1]} 4. d3 {[%clk 0:02:57.5]} 4... Nf6 {[%clk 0:02:58.1]} 5. Bg5 {[%clk
0:02:57.3]} 5... h6 {[%clk 0:02:56]} 6. Bh4 {[%clk 0:02:57.6]} 6... Be7 {[%clk
0:02:56.2]} 7. Bg3 {[%clk 0:02:46]} 7... d6 {[%clk 0:02:56.1]} 8. a4 {[%clk
0:02:45.3]} 8... O-O {[%clk 0:02:48.4]} 9. O-O {[%clk 0:02:34.9]} 9... g6 {[%clk
0:02:28.8]} 10. h3 {[%clk 0:02:27.5]} 10... Kg7 {[%clk 0:02:27.4]} 11. a5 {[%clk
0:02:26.6]} 11... a6 {[%clk 0:02:26.8]} 12. c3 {[%clk 0:02:26.6]} 12... g5
{[%clk 0:02:08.5]} 13. Nbd2 {[%clk 0:02:24.2]} 13... g4 {[%clk 0:02:08.6]} 14.
hxg4 {[%clk 0:02:08.1]} 14... Bxg4 {[%clk 0:02:09.5]} 15. Bh4 {[%clk 0:01:42.5]}
15... Nh5 {[%clk 0:02:09.1]} 16. Bxe7 {[%clk 0:01:40.6]} 16... Qxe7 {[%clk
0:02:10]} 17. g3 {[%clk 0:01:40.8]} 17... f5 {[%clk 0:02:08.7]} 18. Kg2 {[%clk
0:01:29.4]} 18... fxe4 {[%clk 0:02:08.4]} 19. dxe4 {[%clk 0:01:29.6]} 19... Nd8
{[%clk 0:01:58.7]} 20. Be2 {[%clk 0:01:26.7]} 20... Ne6 {[%clk 0:01:57.7]} 21.
Rh1 {[%clk 0:01:25.3]} 21... Qf6 {[%clk 0:01:40.6]} 22. Rh4 {[%clk 0:00:31.1]}
22... Nhf4+ {[%clk 0:01:33.7]} 23. Kf1 {[%clk 0:00:20.9]} 23... Bxf3 {[%clk
0:01:29.7]} 24. Bxf3 {[%clk 0:00:19.5]} 24... Ng6 {[%clk 0:01:29.9]} 25. Rh2
{[%clk 0:00:08.3]} 25... Ng5 {[%clk 0:01:30.3]} 26. Kg2 {[%clk 0:00:08.6]} 26...
Rae8 {[%clk 0:01:22.8]} 27. Ra3 {[%clk 0:00:06.5]} 27... d5 {[%clk 0:01:23.1]}
28. Qe2 {[%clk 0:00:04.7]} 28... d4 {[%clk 0:01:08.7]} 29. c4 {[%clk 0:00:03.9]}
29... Ne6 {[%clk 0:01:07.7]} 30. Kg1 {[%clk 0:00:03.9]} 30... Rd8 {[%clk
0:01:03.5]} 31. b4 {[%clk 0:00:03.3]} 31... d3 {[%clk 0:00:49]} 32. Rxd3 {[%clk
0:00:03.2]} 32... Nef4 {[%clk 0:00:49.1]} 33. gxf4 {[%clk 0:00:02.8]} 33... Nxf4
{[%clk 0:00:50]} 34. Rxd8 {[%clk 0:00:03.2]} 34... Nxe2+ {[%clk 0:00:50.1]} 35.
Bxe2 {[%clk 0:00:04.1]} 35... Rxd8 {[%clk 0:00:49.7]} 36. Nf1 {[%clk 0:00:04]}
36... Kh8 {[%clk 0:00:46]} 37. Ng3 {[%clk 0:00:04.3]} 37... Rg8 {[%clk
0:00:45.6]} 38. Rg2 {[%clk 0:00:03.7]} 38... Qd6 {[%clk 0:00:43.8]} 39. Kf1
{[%clk 0:00:03.7]} 39... Qc5 {[%clk 0:00:43.3]} 40. Rh2 {[%clk 0:00:03.7]} 40...
Qf8 {[%clk 0:00:36]} 41. Nf5 {[%clk 0:00:03.6]} 41... Rg6 {[%clk 0:00:35.9]} 42.
c5 {[%clk 0:00:03]} 42... Rf6 {[%clk 0:00:35.6]} 43. Bc4 {[%clk 0:00:02.2]}
43... Rxf5 {[%clk 0:00:32.1]} 44. exf5 {[%clk 0:00:03.1]} 44... Qxf5 {[%clk
0:00:32.2]} 45. Be2 {[%clk 0:00:02.9]} 45... Qb1+ {[%clk 0:00:31.1]} 46. Kg2
{[%clk 0:00:03.2]} 46... Qxb4 {[%clk 0:00:31.8]} 47. Rxh6+ {[%clk 0:00:03]}
47... Kg7 {[%clk 0:00:32.5]} 48. Rh3 {[%clk 0:00:03.3]} 48... Qxc5 {[%clk
0:00:32.3]} 49. Rg3+ {[%clk 0:00:03.6]} 49... Kf6 {[%clk 0:00:32.5]} 50. Bf3
{[%clk 0:00:04.3]} 50... c6 {[%clk 0:00:31.7]} 51. Be4 {[%clk 0:00:04.7]} 51...
Qxa5 {[%clk 0:00:32.2]} 52. Rg6+ {[%clk 0:00:04.9]} 52... Kf7 {[%clk 0:00:32.9]}
53. Rh6 {[%clk 0:00:05.4]} 53... Qb4 {[%clk 0:00:33.5]} 54. f3 {[%clk 0:00:05]}
54... Qd2+ {[%clk 0:00:32.7]} 55. Kg3 {[%clk 0:00:05.3]} 55... Qxh6 {[%clk
0:00:33.6]} 0-1

[Event "Late-Titled-Tuesday-Blitz-September-05-2023"]
[Site "Chess.com"]
[Date "2023.09.05"]
[Round "10"]
[White "Jahonas"]
[Black "tteshan"]
[Result "1-0"]
[WhiteElo "2411"]
[BlackElo "2550"]
[TimeControl "180+1"]
[EndTime "15:55:28 PDT"]
[Termination "Jahonas won by resignation"]

1. d4 {[%clk 0:03:00.9]} 1... d5 {[%clk 0:02:59.8]} 2. c4 {[%clk 0:03:00.9]}
2... dxc4 {[%clk 0:03:00.7]} 3. e3 {[%clk 0:02:59]} 3... Nf6 {[%clk 0:03:00.9]}
4. Bxc4 {[%clk 0:02:58.6]} 4... e6 {[%clk 0:03:01.5]} 5. Nf3 {[%clk 0:02:58.7]}
5... a6 {[%clk 0:03:01.2]} 6. a4 {[%clk 0:02:56.8]} 6... c5 {[%clk 0:03:01.3]}
7. O-O {[%clk 0:02:56.2]} 7... Nbd7 {[%clk 0:02:58.6]} 8. a5 {[%clk 0:02:47.7]}
8... Be7 {[%clk 0:02:57.1]} 9. Nc3 {[%clk 0:02:47.5]} 9... O-O {[%clk
0:02:56.9]} 10. b3 {[%clk 0:02:43.9]} 10... cxd4 {[%clk 0:02:47.9]} 11. Nxd4
{[%clk 0:02:40.7]} 11... Nc5 {[%clk 0:02:43.9]} 12. Ba3 {[%clk 0:02:37.8]} 12...
Nce4 {[%clk 0:02:16.5]} 13. Nxe4 {[%clk 0:02:31.8]} 13... Nxe4 {[%clk 0:02:16]}
14. Bb2 {[%clk 0:02:16.8]} 14... Bf6 {[%clk 0:02:10.2]} 15. Qe2 {[%clk
0:02:11.3]} 15... e5 {[%clk 0:01:50.9]} 16. Nf3 {[%clk 0:02:07.1]} 16... Bg4
{[%clk 0:01:50.6]} 17. Rfd1 {[%clk 0:02:06.4]} 17... Qc7 {[%clk 0:01:45.7]} 18.
h3 {[%clk 0:02:03.8]} 18... Bh5 {[%clk 0:01:43.3]} 19. Rd5 {[%clk 0:01:55.5]}
19... Rad8 {[%clk 0:01:33.1]} 20. Rad1 {[%clk 0:01:54.5]} 20... Rxd5 {[%clk
0:01:28.6]} 21. Rxd5 {[%clk 0:01:53.6]} 21... Ng5 {[%clk 0:00:58.4]} 22. h4
{[%clk 0:01:22.1]} 22... Nxf3+ {[%clk 0:00:46.5]} 23. gxf3 {[%clk 0:01:21.9]}
23... Qc8 {[%clk 0:00:41.1]} 24. Kg2 {[%clk 0:01:05.2]} 24... Qf5 {[%clk
0:00:37.5]} 25. Bd3 {[%clk 0:01:00]} 25... Qe6 {[%clk 0:00:33.4]} 26. Be4 {[%clk
0:00:53.7]} 26... Rd8 {[%clk 0:00:26]} 27. Qd3 {[%clk 0:00:52.1]} 27... Rc8
{[%clk 0:00:19.4]} 28. Bxe5 {[%clk 0:00:44.9]} 28... Bxh4 {[%clk 0:00:09.6]} 29.
Bxh7+ {[%clk 0:00:27]} 29... Kh8 {[%clk 0:00:09.3]} 30. Bxg7+ {[%clk 0:00:26.3]}
30... Kxg7 {[%clk 0:00:08.6]} 31. Rxh5 {[%clk 0:00:25.8]} 31... Bf6 {[%clk
0:00:07]} 32. Qf5 {[%clk 0:00:24.7]} 32... Qxf5 {[%clk 0:00:06.6]} 33. Bxf5
{[%clk 0:00:24.5]} 33... Rc3 {[%clk 0:00:05.5]} 34. Rh7+ {[%clk 0:00:14.4]}
34... Kf8 {[%clk 0:00:05.6]} 35. Be4 {[%clk 0:00:13.8]} 35... Rxb3 {[%clk
0:00:05.2]} 36. Bd5 {[%clk 0:00:13.2]} 36... Rb5 {[%clk 0:00:04.3]} 37. Rxf7+
{[%clk 0:00:12.6]} 37... Ke8 {[%clk 0:00:04.9]} 38. Rxf6 {[%clk 0:00:10.5]}
38... Rxd5 {[%clk 0:00:05.5]} 39. Rb6 {[%clk 0:00:10.6]} 39... Rxa5 {[%clk
0:00:05.8]} 40. Rxb7 {[%clk 0:00:10.7]} 40... Ra2 {[%clk 0:00:06.5]} 41. Ra7
{[%clk 0:00:11.1]} 41... a5 {[%clk 0:00:07]} 42. f4 {[%clk 0:00:11.7]} 42... a4
{[%clk 0:00:07.7]} 43. f5 {[%clk 0:00:12.3]} 43... a3 {[%clk 0:00:08.4]} 44. f6
{[%clk 0:00:12.8]} 44... Kf8 {[%clk 0:00:08.5]} 45. e4 {[%clk 0:00:13.1]} 45...
Re2 {[%clk 0:00:06.2]} 46. Kf3 {[%clk 0:00:13.3]} 46... Ra2 {[%clk 0:00:03.8]}
47. e5 {[%clk 0:00:13.6]} 47... Ra1 {[%clk 0:00:04.2]} 48. e6 {[%clk 0:00:13.9]}
48... Kg8 {[%clk 0:00:02.9]} 49. Ra8+ {[%clk 0:00:13.1]} 49... Kh7 {[%clk
0:00:03.2]} 50. f7 {[%clk 0:00:13.6]} 50... Rf1 {[%clk 0:00:02.6]} 51. f8=Q
{[%clk 0:00:13.5]} 51... Rxf2+ {[%clk 0:00:01.9]} 1-0

[Event "Late-Titled-Tuesday-Blitz-September-05-2023"]
[Site "Chess.com"]
[Date "2023.09.05"]
[Round "10"]
[White "venturov"]
[Black "Witik"]
[Result "1-0"]
[WhiteElo "2463"]
[BlackElo "2636"]
[TimeControl "180+1"]
[EndTime "15:55:34 PDT"]
[Termination "venturov won on time"]

1. Nf3 {[%clk 0:02:57.5]} 1... Nf6 {[%clk 0:02:59.1]} 2. b3 {[%clk 0:02:57.7]}
2... c5 {[%clk 0:02:58.4]} 3. Bb2 {[%clk 0:02:57.6]} 3... Nc6 {[%clk 0:02:58.9]}
4. e3 {[%clk 0:02:57.2]} 4... a6 {[%clk 0:02:59.4]} 5. d4 {[%clk 0:02:57.7]}
5... cxd4 {[%clk 0:02:53.8]} 6. Nxd4 {[%clk 0:02:56.9]} 6... d5 {[%clk
0:02:51.5]} 7. c4 {[%clk 0:02:54.5]} 7... e5 {[%clk 0:02:48.7]} 8. Nxc6 {[%clk
0:02:53.7]} 8... bxc6 {[%clk 0:02:49.6]} 9. cxd5 {[%clk 0:02:54]} 9... Bb4+
{[%clk 0:02:45.5]} 10. Bc3 {[%clk 0:02:51]} 10... Qa5 {[%clk 0:02:19.8]} 11. Qd2
{[%clk 0:02:37.8]} 11... Nxd5 {[%clk 0:02:19.1]} 12. Bxb4 {[%clk 0:02:36.4]}
12... Nxb4 {[%clk 0:02:19.7]} 13. Nc3 {[%clk 0:02:28.4]} 13... Bf5 {[%clk
0:02:15.1]} 14. O-O-O {[%clk 0:02:17.5]} 14... O-O {[%clk 0:02:07.2]} 15. Bc4
{[%clk 0:02:15.5]} 15... Rfd8 {[%clk 0:01:58]} 16. Qb2 {[%clk 0:02:15.7]} 16...
Bd3 {[%clk 0:01:57.7]} 17. a3 {[%clk 0:02:11.6]} 17... Bxc4 {[%clk 0:01:26.3]}
18. axb4 {[%clk 0:01:57.8]} 18... Qxb4 {[%clk 0:01:25.3]} 19. bxc4 {[%clk
0:01:55.2]} 19... Qxc4 {[%clk 0:01:25.7]} 20. Kc2 {[%clk 0:01:26.9]} 20... Rdb8
{[%clk 0:01:21.6]} 21. Qa1 {[%clk 0:01:15.4]} 21... Rb3 {[%clk 0:01:06.4]} 22.
Rb1 {[%clk 0:01:12.4]} 22... Rab8 {[%clk 0:00:59.1]} 23. Rhd1 {[%clk 0:00:59.7]}
23... h6 {[%clk 0:00:49.9]} 24. Rxb3 {[%clk 0:00:53.2]} 24... Rxb3 {[%clk
0:00:43]} 25. Rb1 {[%clk 0:00:47.4]} 25... Rb5 {[%clk 0:00:33.9]} 26. Qa4 {[%clk
0:00:17.5]} 26... Qc5 {[%clk 0:00:26.9]} 27. Rb3 {[%clk 0:00:17.5]} 27... a5
{[%clk 0:00:06.5]} 28. Rxb5 {[%clk 0:00:16.4]} 28... cxb5 {[%clk 0:00:07.2]} 29.
Qxb5 {[%clk 0:00:16.9]} 29... Qc7 {[%clk 0:00:06.6]} 30. Kb3 {[%clk 0:00:15.3]}
30... Qd8 {[%clk 0:00:05.8]} 31. e4 {[%clk 0:00:15]} 31... Qd2 {[%clk
0:00:05.7]} 32. Qxa5 {[%clk 0:00:14.2]} 32... Qxf2 {[%clk 0:00:05.7]} 33. Qxe5
{[%clk 0:00:14.8]} 33... Qxg2 {[%clk 0:00:06.3]} 34. Kc4 {[%clk 0:00:14.2]}
34... f6 {[%clk 0:00:05.6]} 35. Qe6+ {[%clk 0:00:14.2]} 35... Kh7 {[%clk
0:00:06.2]} 36. h3 {[%clk 0:00:12.5]} 36... Qf1+ {[%clk 0:00:05.6]} 37. Kd4
{[%clk 0:00:12]} 37... Qf2+ {[%clk 0:00:05.9]} 38. Kc4 {[%clk 0:00:12.1]} 38...
Qd2 {[%clk 0:00:04.8]} 39. Nd5 {[%clk 0:00:11.4]} 39... Qa2+ {[%clk 0:00:04.6]}
40. Kd4 {[%clk 0:00:11.5]} 40... Qb2+ {[%clk 0:00:05]} 41. Kc5 {[%clk
0:00:10.4]} 41... Qa3+ {[%clk 0:00:05.4]} 42. Kc6 {[%clk 0:00:10.6]} 42... Qa6+
{[%clk 0:00:05.8]} 43. Kd7 {[%clk 0:00:10.6]} 43... Qb7+ {[%clk 0:00:06.4]} 44.
Ke8 {[%clk 0:00:10.3]} 44... Qb8+ {[%clk 0:00:06]} 45. Kf7 {[%clk 0:00:09.9]}
45... Qg8+ {[%clk 0:00:05.8]} 46. Ke7 {[%clk 0:00:10.3]} 46... Qb8 {[%clk
0:00:05.8]} 47. Qf7 {[%clk 0:00:08.7]} 47... Qb7+ {[%clk 0:00:04.9]} 48. Ke6
{[%clk 0:00:08.4]} 48... Qc8+ {[%clk 0:00:03.8]} 49. Qd7 {[%clk 0:00:08.4]} 1-0